[Event "*** SCC Grand Prix: Titled Tuesday Blitz"]
[Site "Chess.com"]
[Date "2020.06.02"]
[Round "9"]
[White "amelia91"]
[Black "Khayala13"]
[Result "0-1"]
[WhiteElo "1977"]
[BlackElo "2263"]
[TimeControl "180+1"]
[EndTime "11:48:01 PDT"]
[Termination "Khayala13 won on time"]

1. d4 {[%clk 0:03:00.9]} 1... Nf6 {[%clk 0:00:34]} 2. Nf3 {[%clk 0:02:59.6]}
2... e6 {[%clk 0:00:34.1]} 3. e3 {[%clk 0:02:59.1]} 3... d5 {[%clk 0:00:34.1]}
4. Bd3 {[%clk 0:02:58.5]} 4... c5 {[%clk 0:00:34.6]} 5. c3 {[%clk 0:02:57.9]}
5... Nc6 {[%clk 0:00:35.1]} 6. Nbd2 {[%clk 0:02:56.5]} 6... Bd6 {[%clk
0:00:35.6]} 7. O-O {[%clk 0:02:56.1]} 7... O-O {[%clk 0:00:35.8]} 8. Re1 {[%clk
0:02:54]} 8... b6 {[%clk 0:00:36.3]} 9. Qe2 {[%clk 0:02:47.3]} 9... e5 {[%clk
0:00:34.9]} 10. dxc5 {[%clk 0:02:45.1]} 10... bxc5 {[%clk 0:00:34.7]} 11. e4
{[%clk 0:02:41.9]} 11... d4 {[%clk 0:00:33.6]} 12. Nc4 {[%clk 0:02:32]} 12...
Re8 {[%clk 0:00:32.1]} 13. Bg5 {[%clk 0:02:28.4]} 13... h6 {[%clk 0:00:31.7]}
14. Bh4 {[%clk 0:02:27.5]} 14... Bg4 {[%clk 0:00:31.3]} 15. h3 {[%clk
0:02:25.8]} 15... Bh5 {[%clk 0:00:31.1]} 16. Rad1 {[%clk 0:02:15.9]} 16... g5
{[%clk 0:00:30.6]} 17. Bg3 {[%clk 0:02:14.6]} 17... Bg6 {[%clk 0:00:27.1]} 18.
Nh2 {[%clk 0:01:58]} 18... Qe7 {[%clk 0:00:25.6]} 19. Ng4 {[%clk 0:01:46.7]}
19... Nxg4 {[%clk 0:00:24.7]} 20. hxg4 {[%clk 0:01:45.1]} 20... Kg7 {[%clk
0:00:23.3]} 21. f3 {[%clk 0:01:43.5]} 21... Rh8 {[%clk 0:00:23.1]} 22. Bc2
{[%clk 0:01:35.4]} 22... h5 {[%clk 0:00:22.3]} 23. gxh5 {[%clk 0:01:34.2]} 23...
Rxh5 {[%clk 0:00:23.2]} 24. Ba4 {[%clk 0:01:31]} 24... Nd8 {[%clk 0:00:14.7]}
25. cxd4 {[%clk 0:01:08.4]} 25... cxd4 {[%clk 0:00:12.9]} 26. Kf2 {[%clk
0:00:41.7]} 26... f6 {[%clk 0:00:12.6]} 27. a3 {[%clk 0:00:37.9]} 27... Ne6
{[%clk 0:00:11.1]} 28. Bc6 {[%clk 0:00:31]} 28... Rc8 {[%clk 0:00:11.2]} 29. Bd5
{[%clk 0:00:30.9]} 29... Nf4 {[%clk 0:00:11.3]} 30. Bxf4 {[%clk 0:00:30.4]}
30... gxf4 {[%clk 0:00:12.2]} 31. Rh1 {[%clk 0:00:29]} 31... Rg5 {[%clk
0:00:11.3]} 32. Rh3 {[%clk 0:00:23]} 32... d3 {[%clk 0:00:11.2]} 33. Qxd3 {[%clk
0:00:18.5]} 33... Bc5+ {[%clk 0:00:11]} 34. Kf1 {[%clk 0:00:18.5]} 34... Bd4
{[%clk 0:00:11]} 35. Rd2 {[%clk 0:00:17.9]} 35... Rh8 {[%clk 0:00:08.9]} 36.
Rxh8 {[%clk 0:00:15.1]} 36... Kxh8 {[%clk 0:00:09.8]} 37. Qb3 {[%clk 0:00:07.4]}
37... Kg7 {[%clk 0:00:08.9]} 38. Qb7 {[%clk 0:00:06]} 38... Qxb7 {[%clk
0:00:08.5]} 39. Bxb7 {[%clk 0:00:06.2]} 39... Rh5 {[%clk 0:00:09.4]} 40. Ke2
{[%clk 0:00:03.1]} 40... Rh1 {[%clk 0:00:09.6]} 41. Kd3 {[%clk 0:00:03.2]} 41...
Rg1 {[%clk 0:00:09.9]} 42. Nd6 {[%clk 0:00:02.7]} 42... Rc1 {[%clk 0:00:09.6]}
43. b4 {[%clk 0:00:02.3]} 43... Rc7 {[%clk 0:00:10]} 44. Bd5 {[%clk 0:00:01.6]}
44... Rc1 {[%clk 0:00:10.1]} 0-1

[Event "*** SCC Grand Prix: Titled Tuesday Blitz"]
[Site "Chess.com"]
[Date "2020.06.02"]
[Round "9"]
[White "dbrankovic68"]
[Black "dopolian"]
[Result "0-1"]
[WhiteElo "2431"]
[BlackElo "2341"]
[TimeControl "180+1"]
[EndTime "11:48:02 PDT"]
[Termination "dopolian won on time"]

1. e4 {[%clk 0:02:59.9]} 1... e5 {[%clk 0:02:59.7]} 2. Nf3 {[%clk 0:02:59.6]}
2... Nc6 {[%clk 0:02:59.8]} 3. c3 {[%clk 0:02:58.2]} 3... Nf6 {[%clk 0:02:54]}
4. d4 {[%clk 0:02:57.9]} 4... exd4 {[%clk 0:02:49.7]} 5. e5 {[%clk 0:02:56.4]}
5... Ne4 {[%clk 0:02:47.4]} 6. Bc4 {[%clk 0:02:45.3]} 6... d5 {[%clk 0:02:45.7]}
7. exd6 {[%clk 0:02:38.6]} 7... Nxd6 {[%clk 0:02:45.9]} 8. Bb3 {[%clk
0:02:38.3]} 8... dxc3 {[%clk 0:02:37.3]} 9. O-O {[%clk 0:02:37.7]} 9... Be7
{[%clk 0:02:36.6]} 10. Nxc3 {[%clk 0:02:36.6]} 10... O-O {[%clk 0:02:36]} 11.
Bf4 {[%clk 0:02:32.7]} 11... Bg4 {[%clk 0:02:33.4]} 12. h3 {[%clk 0:02:32.1]}
12... Bxf3 {[%clk 0:02:32.8]} 13. Qxf3 {[%clk 0:02:27.6]} 13... Nd4 {[%clk
0:02:33]} 14. Qd1 {[%clk 0:02:21.6]} 14... Nxb3 {[%clk 0:02:32.4]} 15. Qxb3
{[%clk 0:02:22.1]} 15... b6 {[%clk 0:02:03.4]} 16. Rad1 {[%clk 0:02:19.2]} 16...
Re8 {[%clk 0:01:42.9]} 17. Nd5 {[%clk 0:02:06.1]} 17... Rc8 {[%clk 0:01:35]} 18.
Rfe1 {[%clk 0:01:42.7]} 18... Bf8 {[%clk 0:01:26.6]} 19. Rxe8 {[%clk 0:01:30]}
19... Qxe8 {[%clk 0:01:27.5]} 20. Nxc7 {[%clk 0:01:16.7]} 20... Rxc7 {[%clk
0:01:28.4]} 21. Bxd6 {[%clk 0:01:16.3]} 21... Bxd6 {[%clk 0:01:10.4]} 22. Rxd6
{[%clk 0:01:15.7]} 22... h6 {[%clk 0:01:01.1]} 23. Qd1 {[%clk 0:01:03.5]} 23...
Qe4 {[%clk 0:00:53]} 24. Rd4 {[%clk 0:00:57.2]} 24... Qc2 {[%clk 0:00:48.3]} 25.
Rd8+ {[%clk 0:00:41.8]} 25... Kh7 {[%clk 0:00:47.6]} 26. Qd4 {[%clk 0:00:42.1]}
26... Qc1+ {[%clk 0:00:38]} 27. Kh2 {[%clk 0:00:41.8]} 27... Qc6 {[%clk
0:00:38.4]} 28. Qd3+ {[%clk 0:00:39.2]} 28... Qg6 {[%clk 0:00:37.7]} 29. Qe3
{[%clk 0:00:26.8]} 29... Qf6 {[%clk 0:00:20.2]} 30. Rd2 {[%clk 0:00:22.5]} 30...
Re7 {[%clk 0:00:18.6]} 31. Qd3+ {[%clk 0:00:21.8]} 31... Qg6 {[%clk 0:00:19.2]}
32. Qxg6+ {[%clk 0:00:21]} 32... Kxg6 {[%clk 0:00:19.3]} 33. Kg3 {[%clk
0:00:21.6]} 33... Kf5 {[%clk 0:00:18.4]} 34. Kf3 {[%clk 0:00:21.8]} 34... Rc7
{[%clk 0:00:18.3]} 35. Re2 {[%clk 0:00:20.2]} 35... g5 {[%clk 0:00:16.5]} 36. g3
{[%clk 0:00:19.5]} 36... h5 {[%clk 0:00:16]} 37. g4+ {[%clk 0:00:19]} 37...
hxg4+ {[%clk 0:00:16.1]} 38. hxg4+ {[%clk 0:00:19.6]} 38... Kf6 {[%clk 0:00:17]}
39. Rd2 {[%clk 0:00:19.6]} 39... Re7 {[%clk 0:00:16.1]} 40. Rd6+ {[%clk
0:00:18.9]} 40... Ke5 {[%clk 0:00:16]} 41. Rd2 {[%clk 0:00:14.8]} 41... Rc7
{[%clk 0:00:16.1]} 42. Ke3 {[%clk 0:00:13.2]} 42... Ke6 {[%clk 0:00:14.7]} 43.
Ke4 {[%clk 0:00:10]} 43... Rc4+ {[%clk 0:00:14.8]} 44. Kf3 {[%clk 0:00:10.4]}
44... Rc7 {[%clk 0:00:15.1]} 45. Ke3 {[%clk 0:00:09.7]} 45... f6 {[%clk
0:00:14.3]} 46. f3 {[%clk 0:00:10]} 46... Rh7 {[%clk 0:00:12.7]} 47. Ke4 {[%clk
0:00:09.7]} 47... Rc7 {[%clk 0:00:12.6]} 48. Ke3 {[%clk 0:00:07.4]} 48... a5
{[%clk 0:00:11.6]} 49. b3 {[%clk 0:00:06.8]} 49... b5 {[%clk 0:00:11]} 50. Re2
{[%clk 0:00:02]} 50... Ke5 {[%clk 0:00:07.9]} 51. Kd3+ {[%clk 0:00:01.8]} 51...
Kd5 {[%clk 0:00:08.4]} 52. Re8 {[%clk 0:00:01.3]} 52... Rd7 {[%clk 0:00:07.1]}
0-1

[Event "*** SCC Grand Prix: Titled Tuesday Blitz"]
[Site "Chess.com"]
[Date "2020.06.02"]
[Round "9"]
[White "Bastiandash"]
[Black "Bubachess1608"]
[Result "1-0"]
[WhiteElo "2139"]
[BlackElo "2308"]
[TimeControl "180+1"]
[EndTime "11:48:03 PDT"]
[Termination "Bastiandash won on time"]

1. e4 {[%clk 0:03:00.9]} 1... c5 {[%clk 0:02:59.1]} 2. Nc3 {[%clk 0:03:00.1]}
2... e6 {[%clk 0:02:58.4]} 3. g3 {[%clk 0:02:56.8]} 3... a6 {[%clk 0:02:57.8]}
4. Bg2 {[%clk 0:02:55.6]} 4... d6 {[%clk 0:02:58.1]} 5. Nge2 {[%clk 0:02:55.6]}
5... Nf6 {[%clk 0:02:58.2]} 6. O-O {[%clk 0:02:56.2]} 6... Be7 {[%clk
0:02:57.9]} 7. h3 {[%clk 0:02:56.6]} 7... O-O {[%clk 0:02:57.3]} 8. d3 {[%clk
0:02:56.3]} 8... Qc7 {[%clk 0:02:54.8]} 9. f4 {[%clk 0:02:56.5]} 9... Nc6 {[%clk
0:02:53.7]} 10. g4 {[%clk 0:02:56.7]} 10... Ne8 {[%clk 0:02:21.9]} 11. Be3
{[%clk 0:02:48]} 11... b5 {[%clk 0:02:08.7]} 12. Ng3 {[%clk 0:02:35.2]} 12...
Bb7 {[%clk 0:02:06.7]} 13. f5 {[%clk 0:02:31.1]} 13... Nd4 {[%clk 0:02:05]} 14.
Nce2 {[%clk 0:02:25.4]} 14... Nxe2+ {[%clk 0:02:03.1]} 15. Qxe2 {[%clk
0:02:26.3]} 15... d5 {[%clk 0:02:00.3]} 16. fxe6 {[%clk 0:01:47.3]} 16... Qxg3
{[%clk 0:01:54.9]} 17. exf7+ {[%clk 0:01:20.6]} 17... Rxf7 {[%clk 0:01:53.9]}
18. Rxf7 {[%clk 0:01:21.4]} 18... Kxf7 {[%clk 0:01:53.2]} 19. Rf1+ {[%clk
0:01:17.8]} 19... Nf6 {[%clk 0:01:40.3]} 20. Bf4 {[%clk 0:00:56.9]} 20... Qh4
{[%clk 0:01:39]} 21. e5 {[%clk 0:00:54]} 21... Re8 {[%clk 0:01:32.3]} 22. exf6
{[%clk 0:00:45.9]} 22... Bxf6 {[%clk 0:01:31.6]} 23. Qf3 {[%clk 0:00:34.5]}
23... Kg8 {[%clk 0:01:19.2]} 24. c3 {[%clk 0:00:26.7]} 24... b4 {[%clk
0:01:11.5]} 25. g5 {[%clk 0:00:25.9]} 25... bxc3 {[%clk 0:00:52.6]} 26. gxf6
{[%clk 0:00:17.9]} 26... Qxf6 {[%clk 0:00:51.5]} 27. bxc3 {[%clk 0:00:14.8]}
27... Qxc3 {[%clk 0:00:50]} 28. Kh2 {[%clk 0:00:11.2]} 28... Qf6 {[%clk
0:00:45.4]} 29. Qg3 {[%clk 0:00:08.7]} 29... Qg6 {[%clk 0:00:32.3]} 30. Qxg6
{[%clk 0:00:06.6]} 30... hxg6 {[%clk 0:00:31.8]} 31. Rf2 {[%clk 0:00:07.1]}
31... Ba8 {[%clk 0:00:15.7]} 32. Kg3 {[%clk 0:00:07.2]} 32... d4 {[%clk
0:00:14.4]} 33. Bxa8 {[%clk 0:00:08.1]} 33... Rxa8 {[%clk 0:00:13.6]} 34. Bd6
{[%clk 0:00:08.6]} 34... Rc8 {[%clk 0:00:12.4]} 35. Rc2 {[%clk 0:00:08.5]} 35...
Rc6 {[%clk 0:00:11.3]} 36. Bxc5 {[%clk 0:00:07.2]} 36... Kf7 {[%clk 0:00:10.9]}
37. Rc4 {[%clk 0:00:07.1]} 37... Ke6 {[%clk 0:00:10]} 38. Bxd4 {[%clk
0:00:06.9]} 38... Rd6 {[%clk 0:00:09]} 39. Kf3 {[%clk 0:00:05.4]} 39... Kd5
{[%clk 0:00:08.2]} 40. Rc5+ {[%clk 0:00:05.6]} 40... Ke6 {[%clk 0:00:07.9]} 41.
Ke4 {[%clk 0:00:05.3]} 41... Rd7 {[%clk 0:00:06.7]} 42. Re5+ {[%clk 0:00:05.5]}
42... Kf7 {[%clk 0:00:06.3]} 43. Bc5 {[%clk 0:00:04.5]} 43... a5 {[%clk
0:00:05.6]} 44. d4 {[%clk 0:00:05]} 44... a4 {[%clk 0:00:04.7]} 45. d5 {[%clk
0:00:05.4]} 45... Rb7 {[%clk 0:00:04.4]} 46. d6 {[%clk 0:00:05.8]} 46... Rb2
{[%clk 0:00:03.4]} 47. Kd5 {[%clk 0:00:06.1]} 47... Rxa2 {[%clk 0:00:02.3]} 48.
Re7+ {[%clk 0:00:06]} 48... Kf6 {[%clk 0:00:01.5]} 49. d7 {[%clk 0:00:06.8]} 1-0

[Event "*** SCC Grand Prix: Titled Tuesday Blitz"]
[Site "Chess.com"]
[Date "2020.06.02"]
[Round "9"]
[White "Vitor-Moraes"]
[Black "grandcoach"]
[Result "1-0"]
[WhiteElo "2036"]
[BlackElo "2065"]
[TimeControl "180+1"]
[EndTime "11:48:04 PDT"]
[Termination "Vitor-Moraes won on time"]

1. e4 {[%clk 0:03:00.9]} 1... c5 {[%clk 0:02:57.8]} 2. Nc3 {[%clk 0:03:00.2]}
2... Nc6 {[%clk 0:02:57.4]} 3. Bb5 {[%clk 0:03:00.8]} 3... Nd4 {[%clk 0:02:53]}
4. Bc4 {[%clk 0:03:01]} 4... e6 {[%clk 0:02:53.5]} 5. Nge2 {[%clk 0:03:01.5]}
5... a6 {[%clk 0:02:51.8]} 6. a4 {[%clk 0:03:00.7]} 6... g6 {[%clk 0:02:50.4]}
7. O-O {[%clk 0:03:01]} 7... Bg7 {[%clk 0:02:49.9]} 8. d3 {[%clk 0:03:01.6]}
8... Ne7 {[%clk 0:02:49]} 9. Nxd4 {[%clk 0:03:02.1]} 9... cxd4 {[%clk
0:02:48.8]} 10. Ne2 {[%clk 0:03:02.6]} 10... d5 {[%clk 0:02:47.7]} 11. Bb3
{[%clk 0:02:59.6]} 11... O-O {[%clk 0:02:46.6]} 12. Bd2 {[%clk 0:02:55]} 12...
dxe4 {[%clk 0:02:44.9]} 13. dxe4 {[%clk 0:02:54.3]} 13... b6 {[%clk 0:02:39.5]}
14. Bg5 {[%clk 0:02:45.1]} 14... Bb7 {[%clk 0:02:37.5]} 15. f3 {[%clk
0:02:41.4]} 15... Rc8 {[%clk 0:02:19.3]} 16. Qd2 {[%clk 0:02:41.3]} 16... Qc7
{[%clk 0:01:57.5]} 17. Kh1 {[%clk 0:02:35.2]} 17... Nc6 {[%clk 0:01:53.4]} 18.
Bh6 {[%clk 0:02:29.2]} 18... Rfd8 {[%clk 0:01:48.9]} 19. Bxg7 {[%clk 0:02:20.2]}
19... Kxg7 {[%clk 0:01:49.8]} 20. Rad1 {[%clk 0:02:18.3]} 20... a5 {[%clk
0:01:31.7]} 21. Qg5 {[%clk 0:02:14.7]} 21... Ba6 {[%clk 0:01:28.5]} 22. Rfe1
{[%clk 0:02:04]} 22... Bxe2 {[%clk 0:01:20.5]} 23. Rxe2 {[%clk 0:02:02.9]} 23...
Nb4 {[%clk 0:01:15.7]} 24. Red2 {[%clk 0:01:41.6]} 24... Qc5 {[%clk 0:01:14.7]}
25. e5 {[%clk 0:01:31.5]} 25... Nc6 {[%clk 0:00:48.9]} 26. Qf6+ {[%clk
0:01:29.8]} 26... Kg8 {[%clk 0:00:48.6]} 27. f4 {[%clk 0:01:11.3]} 27... Ne7
{[%clk 0:00:47.9]} 28. Rd3 {[%clk 0:01:07.6]} 28... Nf5 {[%clk 0:00:36.7]} 29.
Rh3 {[%clk 0:01:00.9]} 29... Qf8 {[%clk 0:00:34.9]} 30. g4 {[%clk 0:00:57.6]}
30... Ne3 {[%clk 0:00:32.5]} 31. Qh4 {[%clk 0:00:53.6]} 31... Qg7 {[%clk
0:00:31.2]} 32. Rd2 {[%clk 0:00:44.6]} 32... Rd7 {[%clk 0:00:23.4]} 33. Rf2
{[%clk 0:00:30.1]} 33... d3 {[%clk 0:00:14.7]} 34. Rxe3 {[%clk 0:00:28.6]} 34...
d2 {[%clk 0:00:14.7]} 35. c3 {[%clk 0:00:26]} 35... d1=Q+ {[%clk 0:00:12.8]} 36.
Bxd1 {[%clk 0:00:26.4]} 36... Rxd1+ {[%clk 0:00:12.7]} 37. Kg2 {[%clk
0:00:26.9]} 37... Qf8 {[%clk 0:00:11.5]} 38. Rh3 {[%clk 0:00:25.2]} 38... Qg7
{[%clk 0:00:10.5]} 39. Re2 {[%clk 0:00:14.9]} 39... Rcd8 {[%clk 0:00:10.5]} 40.
Qf2 {[%clk 0:00:13.8]} 40... Qf8 {[%clk 0:00:10.1]} 41. Qxb6 {[%clk 0:00:13.4]}
41... R8d2 {[%clk 0:00:08.6]} 42. Qe3 {[%clk 0:00:12.3]} 42... Rd7 {[%clk
0:00:05.1]} 43. Qf2 {[%clk 0:00:11]} 43... Qa8+ {[%clk 0:00:05]} 44. Qf3 {[%clk
0:00:08.1]} 44... Qb8 {[%clk 0:00:05.1]} 45. Qf2 {[%clk 0:00:07.1]} 45... Qb7+
{[%clk 0:00:04.5]} 46. Qf3 {[%clk 0:00:07]} 46... Qc7 {[%clk 0:00:04.2]} 47. f5
{[%clk 0:00:06.9]} 47... exf5 {[%clk 0:00:03.7]} 48. gxf5 {[%clk 0:00:07.8]}
48... R1d2 {[%clk 0:00:03.2]} 49. e6 {[%clk 0:00:06.5]} 49... Rxe2+ {[%clk
0:00:02.3]} 50. Qxe2 {[%clk 0:00:05.8]} 50... fxe6 {[%clk 0:00:01.5]} 51. Qxe6+
{[%clk 0:00:04.3]} 1-0

[Event "*** SCC Grand Prix: Titled Tuesday Blitz"]
[Site "Chess.com"]
[Date "2020.06.02"]
[Round "9"]
[White "MIJUAREZ"]
[Black "Twitch_ElhamBlitz05"]
[Result "0-1"]
[WhiteElo "2390"]
[BlackElo "2681"]
[TimeControl "180+1"]
[EndTime "11:48:05 PDT"]
[Termination "Twitch_ElhamBlitz05 won on time"]

1. e4 {[%clk 0:02:59.5]} 1... c6 {[%clk 0:02:58.7]} 2. d4 {[%clk 0:02:58.2]}
2... d5 {[%clk 0:02:59.6]} 3. Nd2 {[%clk 0:02:56.8]} 3... dxe4 {[%clk
0:02:59.2]} 4. Nxe4 {[%clk 0:02:55.8]} 4... Nf6 {[%clk 0:03:00.1]} 5. Ng3 {[%clk
0:02:54.8]} 5... h5 {[%clk 0:02:56.7]} 6. h4 {[%clk 0:02:52]} 6... Bg4 {[%clk
0:02:52.6]} 7. Qd3 {[%clk 0:02:49.9]} 7... Nbd7 {[%clk 0:02:47.2]} 8. Bg5 {[%clk
0:02:43.3]} 8... e6 {[%clk 0:02:42]} 9. f3 {[%clk 0:02:41.4]} 9... Bf5 {[%clk
0:02:40.8]} 10. Nxf5 {[%clk 0:02:40]} 10... Qa5+ {[%clk 0:02:41.1]} 11. Bd2
{[%clk 0:02:35.2]} 11... Qxf5 {[%clk 0:02:42]} 12. Qxf5 {[%clk 0:02:35.2]} 12...
exf5 {[%clk 0:02:42.9]} 13. Bd3 {[%clk 0:02:35.4]} 13... g6 {[%clk 0:02:42.5]}
14. O-O-O {[%clk 0:02:35.4]} 14... Bh6 {[%clk 0:02:41.8]} 15. Re1+ {[%clk
0:02:29.8]} 15... Kf8 {[%clk 0:02:41.5]} 16. Bxh6+ {[%clk 0:02:26.7]} 16... Rxh6
{[%clk 0:02:42.4]} 17. Nh3 {[%clk 0:02:26.2]} 17... Kg7 {[%clk 0:02:41.2]} 18.
Ng5 {[%clk 0:02:19]} 18... Re8 {[%clk 0:02:22.2]} 19. Rxe8 {[%clk 0:02:16.4]}
19... Nxe8 {[%clk 0:02:23.1]} 20. Re1 {[%clk 0:02:15.3]} 20... Kf8 {[%clk
0:02:23.6]} 21. Bc4 {[%clk 0:02:10.6]} 21... Nd6 {[%clk 0:02:21.3]} 22. Bb3
{[%clk 0:02:11]} 22... b5 {[%clk 0:01:57.3]} 23. c3 {[%clk 0:02:04.5]} 23... Nf6
{[%clk 0:01:50.1]} 24. a4 {[%clk 0:01:39.3]} 24... a6 {[%clk 0:01:49.7]} 25.
axb5 {[%clk 0:01:34.7]} 25... axb5 {[%clk 0:01:50.6]} 26. Kd2 {[%clk 0:01:32]}
26... Nd5 {[%clk 0:01:06.7]} 27. Ra1 {[%clk 0:01:25.6]} 27... f6 {[%clk
0:00:44.4]} 28. Ra8+ {[%clk 0:01:22.6]} 28... Ke7 {[%clk 0:00:43.5]} 29. Ra7+
{[%clk 0:01:22]} 29... Kd8 {[%clk 0:00:29.5]} 30. Bxd5 {[%clk 0:01:02.5]} 30...
cxd5 {[%clk 0:00:19.3]} 31. Nf7+ {[%clk 0:00:58.9]} 31... Nxf7 {[%clk
0:00:18.7]} 32. Rxf7 {[%clk 0:00:59]} 32... g5 {[%clk 0:00:05.6]} 33. hxg5
{[%clk 0:00:57.3]} 33... Rg6 {[%clk 0:00:06.3]} 34. gxf6 {[%clk 0:00:37.4]}
34... Rxg2+ {[%clk 0:00:07.2]} 35. Kd3 {[%clk 0:00:32.8]} 35... Rg6 {[%clk
0:00:07.1]} 36. Rh7 {[%clk 0:00:19.2]} 36... Rxf6 {[%clk 0:00:03.1]} 37. Rxh5
{[%clk 0:00:19.6]} 37... Kc7 {[%clk 0:00:02.9]} 38. Ke3 {[%clk 0:00:18.4]} 38...
Re6+ {[%clk 0:00:01.8]} 39. Kf4 {[%clk 0:00:16.3]} 39... Re2 {[%clk 0:00:01.5]}
40. Rxf5 {[%clk 0:00:16.7]} 40... Kc6 {[%clk 0:00:01.7]} 41. Rf6+ {[%clk
0:00:16]} 41... Kc7 {[%clk 0:00:02.3]} 42. b4 {[%clk 0:00:12.1]} 42... Rc2
{[%clk 0:00:02.1]} 43. Ke5 {[%clk 0:00:12]} 43... Rxc3 {[%clk 0:00:02.5]} 44.
Kxd5 {[%clk 0:00:11.8]} 44... Rc4 {[%clk 0:00:03.1]} 45. Rf7+ {[%clk 0:00:10.8]}
45... Kd8 {[%clk 0:00:02.8]} 46. f4 {[%clk 0:00:09.2]} 46... Rxb4 {[%clk
0:00:02.9]} 47. f5 {[%clk 0:00:09.7]} 47... Rb1 {[%clk 0:00:03.1]} 48. Rb7
{[%clk 0:00:10]} 48... b4 {[%clk 0:00:02.2]} 49. Kd6 {[%clk 0:00:09.3]} 49...
Ke8 {[%clk 0:00:02.2]} 50. d5 {[%clk 0:00:07.6]} 50... b3 {[%clk 0:00:02.1]} 51.
f6 {[%clk 0:00:05.5]} 51... b2 {[%clk 0:00:02]} 52. f7+ {[%clk 0:00:01.2]} 52...
Kf8 {[%clk 0:00:02.6]} 53. Kd7 {[%clk 0:00:01.2]} 53... Rc1 {[%clk 0:00:03.3]}
0-1

[Event "*** SCC Grand Prix: Titled Tuesday Blitz"]
[Site "Chess.com"]
[Date "2020.06.02"]
[Round "9"]
[White "Thipsay"]
[Black "BogdanBelyakov89"]
[Result "1-0"]
[WhiteElo "2486"]
[BlackElo "2627"]
[TimeControl "180+1"]
[EndTime "11:48:06 PDT"]
[Termination "Thipsay won by resignation"]

1. e4 {[%clk 0:03:00.9]} 1... e5 {[%clk 0:02:58.9]} 2. Nf3 {[%clk 0:03:00.7]}
2... Nc6 {[%clk 0:02:56.8]} 3. Bb5 {[%clk 0:03:00.3]} 3... Nf6 {[%clk
0:02:53.7]} 4. O-O {[%clk 0:02:57.2]} 4... Nxe4 {[%clk 0:02:53.5]} 5. Re1 {[%clk
0:02:57.3]} 5... Nd6 {[%clk 0:02:53.5]} 6. Nxe5 {[%clk 0:02:57.4]} 6... Be7
{[%clk 0:02:53.4]} 7. Nc3 {[%clk 0:02:56.9]} 7... O-O {[%clk 0:02:31.3]} 8. Bf1
{[%clk 0:02:53.9]} 8... Nxe5 {[%clk 0:02:29.9]} 9. Rxe5 {[%clk 0:02:53.3]} 9...
c6 {[%clk 0:02:30.1]} 10. d4 {[%clk 0:02:51.6]} 10... Bf6 {[%clk 0:02:28]} 11.
Re1 {[%clk 0:02:51.1]} 11... Re8 {[%clk 0:02:22.1]} 12. Rxe8+ {[%clk 0:02:45.6]}
12... Nxe8 {[%clk 0:02:23]} 13. d5 {[%clk 0:02:45.5]} 13... d6 {[%clk
0:02:18.5]} 14. Be3 {[%clk 0:02:42.5]} 14... c5 {[%clk 0:02:16]} 15. a4 {[%clk
0:02:40.6]} 15... a6 {[%clk 0:02:14.7]} 16. a5 {[%clk 0:02:40]} 16... Bd7 {[%clk
0:02:00.6]} 17. Qd2 {[%clk 0:02:38.7]} 17... Nc7 {[%clk 0:01:58.4]} 18. Ne4
{[%clk 0:02:36.5]} 18... Bf5 {[%clk 0:01:37.2]} 19. Nxf6+ {[%clk 0:02:30.4]}
19... Qxf6 {[%clk 0:01:38.1]} 20. c4 {[%clk 0:02:30.4]} 20... Rb8 {[%clk
0:01:30.4]} 21. Re1 {[%clk 0:02:19]} 21... h6 {[%clk 0:01:28.7]} 22. b4 {[%clk
0:02:18.4]} 22... cxb4 {[%clk 0:00:59.1]} 23. Qxb4 {[%clk 0:02:18.2]} 23... Ne8
{[%clk 0:00:27]} 24. Ba7 {[%clk 0:02:09]} 24... Rc8 {[%clk 0:00:26.9]} 25. Qxb7
{[%clk 0:02:07.8]} 25... Qc3 {[%clk 0:00:27]} 26. Rd1 {[%clk 0:01:49.2]} 26...
Qxa5 {[%clk 0:00:25.4]} 27. c5 {[%clk 0:01:40.7]} 27... dxc5 {[%clk 0:00:17.3]}
28. d6 {[%clk 0:01:40.1]} 28... Qa4 {[%clk 0:00:16.5]} 29. d7 {[%clk 0:01:34.6]}
29... Qxd1 {[%clk 0:00:11.3]} 30. dxc8=Q {[%clk 0:01:30.9]} 30... Bxc8 {[%clk
0:00:12.2]} 31. Qxc8 {[%clk 0:01:30.9]} 31... Qe1 {[%clk 0:00:12.9]} 32. Bxc5
{[%clk 0:01:29.7]} 32... a5 {[%clk 0:00:12]} 33. Be3 {[%clk 0:01:29.2]} 33...
Kf8 {[%clk 0:00:11.6]} 34. Bc5+ {[%clk 0:01:28.3]} 34... Kg8 {[%clk 0:00:11.6]}
35. Qd8 {[%clk 0:01:28.3]} 35... Kh7 {[%clk 0:00:11.6]} 36. Qe7 {[%clk
0:01:27.8]} 36... Qxe7 {[%clk 0:00:10.5]} 37. Bxe7 {[%clk 0:01:27.2]} 37... Nc7
{[%clk 0:00:10.6]} 38. Bd8 {[%clk 0:01:24.5]} 38... Nd5 {[%clk 0:00:09.9]} 39.
Bxa5 {[%clk 0:01:24.4]} 39... g6 {[%clk 0:00:10.8]} 40. g3 {[%clk 0:01:24.1]}
40... Kg7 {[%clk 0:00:10.6]} 41. Bc4 {[%clk 0:01:23.2]} 41... Ne7 {[%clk
0:00:10.9]} 42. Bc3+ {[%clk 0:01:22.7]} 42... Kg8 {[%clk 0:00:10.2]} 43. Bf6
{[%clk 0:01:21]} 43... Nf5 {[%clk 0:00:10.4]} 44. h4 {[%clk 0:01:19.7]} 44... h5
{[%clk 0:00:10.4]} 45. Bd3 {[%clk 0:01:19.4]} 45... Nd6 {[%clk 0:00:10.5]} 46.
Kg2 {[%clk 0:01:19.2]} 46... Ne8 {[%clk 0:00:10.7]} 47. Be5 {[%clk 0:01:18.8]}
47... Kf8 {[%clk 0:00:10.7]} 48. Kf3 {[%clk 0:01:18.9]} 48... Ke7 {[%clk
0:00:11.1]} 49. Kf4 {[%clk 0:01:18.9]} 49... Ke6 {[%clk 0:00:11.3]} 50. Bb8
{[%clk 0:01:18.8]} 50... Nf6 {[%clk 0:00:10.4]} 51. Bc4+ {[%clk 0:01:18]} 51...
Ke7 {[%clk 0:00:10.5]} 52. Be5 {[%clk 0:01:17.5]} 52... Nd7 {[%clk 0:00:10]} 53.
Bd4 {[%clk 0:01:17.3]} 53... Kf8 {[%clk 0:00:09.6]} 54. Kg5 {[%clk 0:01:17.2]}
54... Kg8 {[%clk 0:00:09.1]} 55. Bb5 {[%clk 0:01:16.7]} 55... Nf8 {[%clk
0:00:07.8]} 56. Kh6 {[%clk 0:01:15.8]} 56... Ne6 {[%clk 0:00:07.4]} 57. Be3
{[%clk 0:01:14.9]} 57... Nc7 {[%clk 0:00:06.9]} 58. Bc4 {[%clk 0:01:14.8]} 58...
Ne8 {[%clk 0:00:07]} 59. Bd4 {[%clk 0:01:13.8]} 59... Nd6 {[%clk 0:00:07.1]} 60.
Bd3 {[%clk 0:01:13.8]} 60... Ne8 {[%clk 0:00:05]} 61. Kg5 {[%clk 0:01:13.7]}
61... Nd6 {[%clk 0:00:04.6]} 62. Be5 {[%clk 0:01:13.4]} 62... Nc8 {[%clk
0:00:03.7]} 63. Bc4 {[%clk 0:01:12.4]} 63... Nb6 {[%clk 0:00:02.5]} 64. Bb3
{[%clk 0:01:11.8]} 64... Kf8 {[%clk 0:00:02.3]} 65. Bf6 {[%clk 0:01:11.3]} 65...
Kg8 {[%clk 0:00:02.1]} 66. Kf4 {[%clk 0:01:11.2]} 66... Nd7 {[%clk 0:00:01.4]}
67. Bd4 {[%clk 0:01:10.8]} 67... Kf8 {[%clk 0:00:02.3]} 68. Ba4 {[%clk
0:01:10.6]} 68... Nb8 {[%clk 0:00:02.1]} 69. Bb5 {[%clk 0:01:09.9]} 69... Ke7
{[%clk 0:00:01.7]} 70. Ba7 {[%clk 0:01:10.1]} 70... Nd7 {[%clk 0:00:02.6]} 71.
Bxd7 {[%clk 0:01:09.7]} 71... Kxd7 {[%clk 0:00:03.5]} 72. Ke5 {[%clk 0:01:09.9]}
72... Ke7 {[%clk 0:00:04.4]} 73. Bc5+ {[%clk 0:01:10]} 73... Ke8 {[%clk
0:00:04.3]} 74. Kf6 {[%clk 0:01:10.3]} 1-0